Cogmind - Beta 14 @@@ ROGUE MODE // 2024.10.21 @ 23:11:35 Player: Lord Draconis Result: Destroyed by H-88 Terminator with KE Penetrator Performance ------------- Evolutions (8) 4000 Regions Visited (18) 3600 Robots Destroyed (327) 1635 Value Destroyed (14166) 14166 Prototype IDs (14) 280 Alien Tech Used (2) 400 Bonus (8078) 8078 TOTAL SCORE: 32159 Bonus ------- High Alert Combat Kills 2065 Follower Combat Kills 1965 Met Warlord at Base 500 MAIN.C Attacked Warlord 500 Warlord Defense Kills 594 Built Enhanced Grunts 300 Met R17 at Cetus 500 Met R17 at Research 2000 Friendly Fire -346 Cogmind --------- Core Integrity 0/1450 Matter 49/300 Energy 77/100 System Corruption 28% Temperature Hot (251) Movement Core (50) Location -2/Research Parts ------- > --- POWER (2) -------- (None) > --- PROPULSION (6) --- (None) > --- UTILITY (11) ----- Enhanced Optical Array Advanced Target Analyzer Advanced Target Analyzer Advanced Target Analyzer Core Analyzer > --- WEAPON (4) ------- (None) > --- INVENTORY (5) ---- Myomer Leg Quantum Rifle Heavy Disruptor Cannon Peak State ------------ > --- POWER ------------ Quantum Reactor Light Quantum Reactor > --- PROPULSION ------- Medium Treads Spiked Heavy Treads Spiked Heavy Treads Biometal Medium Treads > --- UTILITY ---------- Advanced Heat Sink Huge Storage Unit Enhanced Optical Array Advanced Targeting Computer Advanced Target Analyzer Core Analyzer Improved Medium Armor Plating Layered Heavy Armor Plating Centrium Medium Armor Plating Improved Shock Absorption System > --- WEAPON ----------- Disruptor Cannon KE Penetrator Advanced KE Penetrator Linear Accelerator > --- INVENTORY -------- Reinforced Fission Core Particle Reactor Micro Antimatter Reactor Light Quantum Reactor Medium Treads Advanced Heat Sink Advanced Heat Sink Medium Matter Pod High-powered Tractor Beam Plasma Rifle Plasma Rifle Advanced Variable Charge Gun Quantum Rifle Vortex Cannon Enhanced Nova Cannon Railgun Railgun Advanced KE Penetrator Advanced KE Penetrator Hypervelocity Mass Driver Linear Accelerator Missile Launcher Heavy Missile Launcher Heavy Mace [Rating: 156] Favorites ----------- Power Quantum Reactor Engine Light Ion Engine Power Core Micro Nuclear Core Reactor Quantum Reactor Propulsion Improved Treads Treads Improved Treads Leg Flexi-carbon Leg Wheel Compact Wheel Hover Unit Improved Antigrav System Flight Unit Nuclear Pulse Thruster Utility Huge Storage Unit Device Advanced Heat Sink Storage Huge Storage Unit Processor Improved Targeting Computer Protection Centrium Medium Armor Plating Weapon Advanced Plasma Cannon Energy Gun Quantum Rifle Energy Cannon Advanced Plasma Cannon Ballistic Gun Railgun Ballistic Cannon Hardcell Cannon Launcher Grenade Launcher Impact Weapon Heavy Mace Build | -11 -10 -10 -9 -9 -8 -7 -6 -6 -6 -5 -4 -4 -4 -4 -3 -3 -3 -2 ------- Run | Yrd Mat Min Mat Min Mat Fac Fac Ext Cet Fac Fac Upp Upp War Pro Res Qua Res Slots Evolved 16 | . . . 2 . 2 2 2 . . 2 2 . . . . 2 . 2 Power 1 | . . . . . . . . . . . . . . . . . . 1 Propulsion 4 | . . . 1 . 1 . 2 . . . . . . . . . . . Utility 9 | . . . 1 . 1 2 . . . 1 1 . . . . 2 . 1 Weapon 2 | . . . . . . . . . . 1 1 . . . . . . . Parts Attached 289 | 7 9 3 22 11 14 14 28 61 7 12 4 5 4 1 7 11 8 61 Power 28 | 1 2 . 1 2 1 . 2 6 1 . . . . . 1 1 . 10 Engine 10 | 1 2 . 1 1 . . 1 4 . . . . . . . . . . Core 6 | . . . . 1 1 . . 2 . . . . . . 1 . . 1 Reactor 12 | . . . . . . . 1 . 1 . . . . . . 1 . 9 Propulsion 69 | 2 3 1 8 1 1 3 7 20 1 5 . 1 1 . . . 3 12 Treads 41 | 1 1 1 4 1 1 3 7 7 1 4 . 1 1 . . . 3 5 Leg 11 | . . . . . . . . 11 . . . . . . . . . . Wheel 14 | 1 2 . 4 . . . . 2 . . . . . . . . . 5 Hover 2 | . . . . . . . . . . . . . . . . . . 2 Flight 1 | . . . . . . . . . . 1 . . . . . . . . Utility 82 | 2 2 . 5 2 7 6 5 16 2 3 2 1 3 . 3 6 2 15 Device 36 | 1 . . 3 . 4 1 2 10 . 2 . 1 . . 2 1 . 9 Storage 5 | 1 2 . . . 1 . . 1 . . . . . . . . . . Processor 16 | . . . 1 . 1 2 1 . . 1 2 . 2 . . . 1 5 Hackware . | . . . . . . . . . . . . . . . . . . . Protection 25 | . . . 1 2 1 3 2 5 2 . . . 1 . 1 5 1 1 Artifact . | . . . . . . . . . . . . . . . . . . . Weapon 110 | 2 2 2 8 6 5 5 14 19 3 4 2 3 . 1 3 4 3 24 Energy Gun 26 | 1 1 . 3 1 . 1 1 7 1 . 1 2 . . . . 1 6 Energy Cannon 25 | . . . 1 2 2 2 4 3 . 2 . . . 1 1 2 . 5 Ballistic Gun 24 | 1 1 1 4 1 . 1 . 2 2 . . 1 . . . 1 1 8 Ballistic Cannon 20 | . . . . . 1 1 5 4 . 2 1 . . . 1 1 . 4 Launcher 12 | . . 1 . 2 1 . 3 2 . . . . . . 1 . 1 1 Special Weapon . | . . . . . . . . . . . . . . . . . . . Impact Weapon 3 | . . . . . 1 . 1 1 . . . . . . . . . . Slashing Weapon . | . . . . . . . . . . . . . . . . . . . Piercing Weapon . | . . . . . . . . . . . . . . . . . . . Special Melee Weapon . | . . . . . . . . . . . . . . . . . . . Unidentified Prototypes 14 | . . . 3 . 1 . 2 . 4 . . . . 1 . . 2 1 Corrupted Parts 4 | . . . . . . . . . 4 . . . . . . . . . System Corruption 20 | . . . . . . . . . 20 . . . . . . . . . Parts Lost 124 | . . 1 7 5 . 6 10 34 . . . 1 . 1 1 . 6 52 Power 15 | . . . . 1 . . 1 5 . . . . . . 1 . . 7 Propulsion 43 | . . 1 5 1 . 4 5 13 . . . . . . . . 2 12 Utility 32 | . . . 2 2 . 1 2 8 . . . . . 1 . . 3 13 Weapon 34 | . . . . 1 . 1 2 8 . . . 1 . . . . 1 20 Highest Loss Streak 17 | . . 1 1 3 . 3 3 8 . . . 1 . 1 1 . 2 17 To Critical Strikes 4 | . . . . . . . . . . . . 1 . . . . 1 2 Average Slot Usage (%) 89 | . 99 99 97 99 99 99 92 74 98 92 94 89 84 84 83 85 80 70 Engine 3 | . 14 14 11 10 . . . 4 . . . . . . . . . . Core 1 | . . . . . 9 7 3 1 1 . . . . . 3 1 . . Reactor 2 | . . . . . . . 2 . 4 5 5 5 5 5 1 2 4 6 Treads 20 | . 13 13 15 32 36 29 32 9 20 28 26 21 15 15 15 14 15 9 Leg 1 | . . . . . . . . 7 17 . . . . . . . . . Wheel 3 | . 14 14 15 . . . . 2 . . . . . . . . . 2 Device 10 | . 14 14 12 . 8 15 9 10 13 11 10 10 10 10 9 9 9 6 Storage 7 | . 14 14 11 11 9 7 6 6 6 5 5 5 5 5 5 4 4 3 Processor 11 | . . . 8 11 9 12 16 12 6 9 15 15 15 15 15 14 11 19 Protection 6 | . . . 1 10 9 8 5 4 13 11 10 10 9 10 9 18 15 4 Energy Gun 4 | . 14 14 5 3 . 3 . 4 10 . 5 5 5 5 5 4 1 2 Energy Cannon 4 | . . . 5 10 8 3 4 1 . 5 5 5 5 7 5 4 2 3 Ballistic Gun 4 | . 14 13 11 5 . . . 1 1 5 5 5 5 5 5 4 7 5 Ballistic Cannon 3 | . . . . . 8 7 5 4 . 5 5 5 5 2 4 4 4 2 Peak Build Rating 156 | 7 10 11 26 25 33 45 58 63 96 101 112 127 136 137 136 149 147 156 Average Rating 67 | 5 9 10 23 19 31 42 54 44 81 98 109 122 134 136 133 143 141 111 On Entrance 71 | . 7 10 11 26 21 33 37 47 63 96 101 112 127 136 124 134 144 136 Naked Turns . | . . . . . . . . . . . . . . . . . . . Heaviest Build 187 | 12 87 89 99 95 101 109 130 117 127 140 145 148 148 152 147 163 174 187 Greatest Support 230 | 20 20 16 66 66 89 97 136 70 80 170 163 195 230 230 230 230 230 213 Greatest Overweight (x) 34 | 2 5 5 32 1 1 1 1 34 1 1 . . . . . . . 10 Average Overweight (x) 1 | . 3 5 3 1 1 1 . 5 1 . . . . . . . . 2 Largest Inventory Capacity 25 | 8 25 25 25 25 25 25 25 25 25 25 25 25 25 25 25 25 25 25 Average Capacity 24 | 7 20 25 25 25 25 25 25 25 25 25 25 25 25 25 25 25 25 24 Most Carried 25 | 6 25 25 25 25 25 25 25 25 25 25 25 25 25 25 25 25 25 25 Average Carried 23 | 3 17 24 24 23 24 24 24 22 24 24 24 24 25 25 23 24 23 20 Final Capacity 25 | 8 25 25 25 25 25 25 25 25 25 25 25 25 25 25 25 25 25 5 Final Carried 25 | 6 25 25 25 23 25 22 24 24 25 25 25 25 25 25 24 25 24 4 Class Distribution -------------------- 50% | Mutant 22% | Scavenger-Gunner 15% | Scavenger-Mutant 11% | Scavenger-Tank Dominant Class ---------------- Mutant | -10/Materials Mutant | -10/Mines Mutant | -9/Materials Mutant | -9/Mines Mutant | -8/Materials Mutant | -7/Factory Mutant | -6/Factory Scavenger-Mutant | -6/Extension Scavenger-Mutant | -6/Cetus Scavenger-Tank | -5/Factory Scavenger-Gunner | -4/Factory Scavenger-Gunner | -4/Upper Caves Scavenger-Gunner | -4/Upper Caves Scavenger-Gunner | -4/Warlord Scavenger-Tank | -3/Proximity Caves Scavenger-Tank | -3/Research Scavenger-Tank | -3/Quarantine Scavenger-Gunner | -2/Research Resources | -11 -10 -10 -9 -9 -8 -7 -6 -6 -6 -5 -4 -4 -4 -4 -3 -3 -3 -2 ----------- Run | Yrd Mat Min Mat Min Mat Fac Fac Ext Cet Fac Fac Upp Upp War Pro Res Qua Res Matter Collected 8274 | 124 391 68 473 272 314 421 1174 1792 102 430 52 199 143 27 233 173 681 1205 Remotely 570 | . . . . . . . 111 241 . . . . . . . . . 218 Salvage Created 14134 | 124 533 132 1711 344 721 505 1909 1642 . 872 69 353 60 213 373 239 1292 3042 Parts 690 | 11 37 11 103 18 41 26 75 48 . 37 1 18 1 9 13 7 65 169 Haulers Intercepted 14 | . 2 . 5 . 3 1 2 . . . . . . . . . 1 . Recyclers Shooed 20 | 1 1 . 5 . . . 4 1 . 1 . . . . . . . 7 Parts Field Recycled . | . . . . . . . . . . . . . . . . . . . Retrieved Matter . | . . . . . . . . . . . . . . . . . . . Parts Self-Destructed 27 | . . . . . . . . . . . . 12 5 . 10 . . . Prevented 1 | . . . . . . . . . . . . 1 . . . . . . Kills | -11 -10 -10 -9 -9 -8 -7 -6 -6 -6 -5 -4 -4 -4 -4 -3 -3 -3 -2 ------- Run | Yrd Mat Min Mat Min Mat Fac Fac Ext Cet Fac Fac Upp Upp War Pro Res Qua Res Combat Hostiles Destroyed 250 | . 10 5 27 24 10 15 37 32 . 14 1 6 1 4 8 3 20 33 Guns 81 | . 10 2 20 2 . 5 . 10 . 5 1 3 . . 2 . 8 13 Cannons 128 | . . . 7 9 10 10 29 18 . 9 . 2 1 3 3 2 9 16 AOE 38 | . . 3 . 13 . . 8 4 . . . . . 1 3 . 3 3 Classes Destroyed 23 | 2 4 . 3 1 1 4 3 1 . 2 . 1 . 1 . . . . Worker 20 | . . . 5 . . . 2 . . 1 . . . . . . 7 5 Builder 12 | . . . . . . 1 4 2 . . . . . . . . . 5 Tunneler 6 | 3 . 1 1 . . . . 1 . . . . . . . . . . Hauler 14 | . 2 . 5 . 3 1 2 . . . . . . . . . 1 . Recycler 15 | 1 1 . 1 . . 1 2 3 . 1 . . . . . . . 5 Mechanic 1 | . . . . . . . 1 . . . . . . . . . . . Operator 3 | . . . . . 2 . . . . 1 . . . . . . . . Watcher 16 | . 3 . 4 . 1 2 1 1 . 1 . . . . . 1 1 1 Swarmer 29 | . 6 3 . 7 . 5 . . . . . . . 1 4 . 3 . Saboteur 1 | . . . . . . . . . . 1 . . . . . . . . Grunt 96 | . 4 2 17 5 7 3 18 16 . 5 . . . 1 3 . 11 4 Brawler 8 | . . . 2 . 1 . 2 . . 2 . . . . 1 . . . Duelist 2 | . . . . . . . 1 . . 1 . . . . . . . . Protector 1 | . . . . . . . 1 . . . . . . . . . . . Sentry 30 | . . . 8 . 4 . 6 6 . . 1 1 . . . 1 . 3 Demolisher 1 | . . . . . . . . . . 1 . . . . . . . . Hunter 24 | . . . . . . 3 2 3 . 1 . 2 . 1 . 2 2 8 Programmer 37 | . . . . . . 3 6 1 . 3 . 2 . . . . 4 18 Heavy 2 | . . . . . . 1 1 . . . . . . . . . . . Behemoth 3 | . . . . . . . . 2 . . . . 1 . . . . . Executioner 1 | . . . . . . . . . . . . . . 1 . . . . Assembled 12 | . . . . 12 . . . . . . . . . . . . . . Butcher 1 | . . . . . . . . 1 . . . . . . . . . . Guerrilla 3 | . . . . . . . . 3 . . . . . . . . . . Mutant 1 | . . . . . . . . . . . . 1 . . . . . . Best Kill Streak 12 | 4 7 3 5 7 3 4 10 5 . 9 1 2 1 2 4 1 12 9 Combat Bots Only 9 | . 6 3 4 7 3 2 6 4 . 7 1 2 1 2 4 1 9 5 Max Kills in Single Turn 4 | 1 1 3 2 2 2 1 4 2 . 2 1 1 1 1 3 1 4 3 Gunslinging . | . . . . . . . . . . . . . . . . . . . Exploded 3 | . . 3 . 2 . . 3 2 . . . . . 1 3 . 2 2 Melee . | . . . . . . . . . . . . . . . . . . . Uniques/NPCs Destroyed . | . . . . . . . . . . . . . . . . . . . Combat | -11 -10 -10 -9 -9 -8 -7 -6 -6 -6 -5 -4 -4 -4 -4 -3 -3 -3 -2 -------- Run | Yrd Mat Min Mat Min Mat Fac Fac Ext Cet Fac Fac Upp Upp War Pro Res Qua Res Hostile Shots Fired 2039 | . 52 21 83 58 14 89 283 606 2 38 4 56 24 22 59 58 184 386 Missed 680 | . 10 8 24 7 5 26 102 240 1 11 . 24 3 4 17 19 71 108 Damage Taken 24360 | . 430 178 829 869 145 1363 2768 4481 13 617 175 584 633 699 714 641 2246 6975 Core 3130 | . 104 12 97 98 18 190 249 499 13 19 26 96 44 18 94 . 99 1454 Absorbed by Shields 151 | . . . . . . . . . 13 . . . . . . . . 138 Ignored by Resistances 125 | . . . . . . . 30 . . . . . . . 95 . . . Regen/Repaired (Parts) 190 | . . . . . . . . . . . . . . 190 . . . . Core Remaining (%) 71 | 100 . 53 . 51 96 72 . . 10 98 . . . . 75 . 92 . Volleys Fired 905 | 5 43 24 96 44 29 80 176 153 5 33 2 14 8 5 14 21 39 114 Largest 4 | 2 2 2 2 2 2 2 2 2 2 3 4 4 4 4 4 4 4 4 Hottest 351 | 70 70 70 91 124 116 128 128 130 110 190 278 278 292 277 292 292 293 351 Shots Fired 1826 | 10 86 47 192 74 58 136 261 251 8 84 8 56 32 20 37 55 114 297 Gun 809 | 10 86 46 157 31 . 27 7 78 8 26 4 28 16 10 18 24 61 172 Cannon 981 | . . . 35 30 58 109 241 169 . 58 4 28 16 10 18 31 49 125 Launcher 36 | . . 1 . 13 . . 13 4 . . . . . . 1 . 4 . Special . | . . . . . . . . . . . . . . . . . . . Kinetic 953 | 5 43 23 96 19 29 81 88 149 5 53 4 28 16 5 23 24 75 187 Thermal 800 | 5 43 23 96 42 29 55 160 98 3 31 4 28 16 10 13 28 35 81 Explosive 36 | . . 1 . 13 . . 13 4 . . . . . . 1 . 4 . Electromagnetic 29 | . . . . . . . . . . . . . . . . . . 29 Entropic 8 | . . . . . . . . . . . . . . 5 . 3 . . Robot Hit Streak 24 | 3 18 7 20 9 9 14 17 24 8 21 7 6 14 9 5 8 16 8 Robot Miss Streak 8 | 1 4 3 8 3 2 3 3 8 2 3 1 3 2 1 1 6 4 5 Penetration Max 1 | . . . . . 1 . . 1 . 1 . . . . 1 . 1 1 Secondary Targets 4 | . 1 . 1 . . . . . . . . . . . . . . 2 Max Gunslinging Chain 1 | . 1 . 1 . . . . . . . . . . . . . . 1 Shots Hit Robots 1146 | 5 54 25 137 42 40 93 149 191 6 50 4 37 28 13 22 22 59 169 Core Hits 631 | 5 26 10 80 33 21 30 96 86 3 32 4 17 5 4 15 9 59 96 Critical Kills 22 | . . . 1 . . . . 4 . 4 . . . . . 1 2 10 Critical Parts Destroyed 20 | . . . . . . . . 4 . 2 . . . . . . 7 7 Critical Strikes 102 | . 6 3 4 1 1 1 6 21 . 8 . 1 . 1 . 3 12 34 Burn 18 | . 6 3 3 1 . . . 3 . . . . . . . . . 2 Meltdown 1 | . . . . . . . . . . . . . . . . 1 . . Destroy 45 | . . . 1 . . . . 10 . 6 . . . . . 1 9 18 Blast 35 | . . . . . 1 1 6 8 . 2 . 1 . . . 1 3 12 Corrupt 2 | . . . . . . . . . . . . . . . . . . 2 Sunder 1 | . . . . . . . . . . . . . . 1 . . . . Melee Attacks 27 | . . . . . 1 . 10 16 . . . . . . . . . . Impact 27 | . . . . . 1 . 10 16 . . . . . . . . . . Slashing . | . . . . . . . . . . . . . . . . . . . Piercing . | . . . . . . . . . . . . . . . . . . . Sneak Attacks . | . . . . . . . . . . . . . . . . . . . Combat Hostiles . | . . . . . . . . . . . . . . . . . . . Follow-up Attacks . | . . . . . . . . . . . . . . . . . . . Damage Inflicted 38805 | 62 611 398 2333 1428 1008 2399 7367 6440 152 1963 148 1065 891 392 1031 740 3316 7061 Guns 12410 | 62 606 292 1670 295 . 374 146 1531 152 665 69 506 408 118 382 265 1152 3717 Cannons 19893 | . . . 624 378 1008 2025 4515 4154 . 1223 79 559 483 274 437 475 1039 2620 Explosions 6433 | . . 106 . 755 . . 2706 735 . 75 . . . . 212 . 1125 719 Melee . | . . . . . . . . . . . . . . . . . . . Ramming 69 | . 5 . 39 . . . . 20 . . . . . . . . . 5 Kinetic 18417 | . 205 111 968 223 550 1487 2367 3514 62 1281 46 466 424 35 515 309 1405 4449 Thermal 14848 | 62 401 181 1326 450 458 912 2916 2171 90 682 102 599 467 217 304 431 786 2293 Explosive 4981 | . . 106 . 755 . . 2048 735 . . . . . . 212 . 1125 . Electromagnetic 350 | . . . . . . . 36 . . . . . . . . . . 314 Impact . | . . . . . . . . . . . . . . . . . . . Slashing . | . . . . . . . . . . . . . . . . . . . Piercing . | . . . . . . . . . . . . . . . . . . . Entropic 140 | . . . . . . . . . . . . . . 140 . . . . Highest Corruption 29 | . 1 1 . . . 5 8 9 29 . . . . . . . 7 28 Average Corruption 6 | . 1 1 . . . 1 4 8 12 . . . . . . . 5 17 Corruption Purged . | . . . . . . . . . . . . . . . . . . . Corruption Blocked . | . . . . . . . . . . . . . . . . . . . Effects 290 | . 6 9 . . . 14 56 114 14 . . . . . . . 13 64 Message Errors 63 | . 1 2 . . . 3 10 28 2 . . . . . . . 4 13 Matter Fused 69 | . 2 2 . . . 4 12 29 3 . . . . . . . 3 14 Heat Flow Errors 43 | . 1 1 . . . 3 5 22 2 . . . . . . . . 9 Energy Discharges 30 | . . 1 . . . 1 11 11 1 . . . . . . . 2 3 Parts Rejected 3 | . . . . . . . . 1 . . . . . . . . . 2 Parts Fused 4 | . . . . . . . 1 1 1 . . . . . . . . 1 Data Loss (minor) 32 | . 1 . . . . 2 6 12 3 . . . . . . . 1 7 Data Loss (major) 10 | . 1 2 . . . . 1 3 . . . . . . . . . 3 Misfires 11 | . . . . . . 1 6 3 . . . . . . . . . 1 Alerts 10 | . . 1 . . . . . 2 2 . . . . . . . 1 4 Misdirections 2 | . . . . . . . . . . . . . . . . . . 2 Weapon Failures 13 | . . . . . . . 4 2 . . . . . . . . 2 5 Overload Shots 6 | . . . . . . . . . . . . . . . . . 6 . Overflow Damage 667 | . . . 4 64 4 102 259 24 . 42 . 16 . . 4 19 38 91 Projectiles 385 | . . . 4 . 4 102 162 24 . 2 . 16 . . . 19 18 34 Explosions 282 | . . . . 64 . . 97 . . 40 . . . . 4 . 20 57 Melee . | . . . . . . . . . . . . . . . . . . . Knockbacks 69 | . . . . . 3 16 14 14 . 10 . 1 . . 1 2 2 6 Impact . | . . . . . . . . . . . . . . . . . . . Kinetic 58 | . . . . . 2 13 13 11 . 8 . 1 . . 1 2 2 5 Secondary 11 | . . . . . 1 3 1 3 . 2 . . . . . . . 1 Self-Inflicted Damage 598 | . 2 23 19 149 . . 237 10 . . . . . . . . 31 127 Shots 15 | . . 1 . 5 . . 5 . . . . . . . . . 2 2 Rammed 6 | . 1 . 3 . . . . 1 . . . . . . . . . 1 Targets Rammed 6 | . 1 . 3 . . . . 1 . . . . . . . . . 1 Kicked . | . . . . . . . . . . . . . . . . . . . Crushed . | . . . . . . . . . . . . . . . . . . . Highest Temperature 701 | 40 234 280 27 288 117 194 224 604 229 330 92 182 291 51 478 393 152 701 Average Temperature 117 | 19 68 84 7 94 33 78 85 125 107 110 52 77 146 34 200 148 67 206 Received Heat Transfer 4086 | . 132 75 339 261 63 144 811 948 . 175 18 9 54 12 318 27 349 351 Effects 77 | . . . . 3 . . . 18 . 4 . . . . 3 2 . 47 Shutdowns 16 | . . . . . . . . 3 . . . . . . . 1 . 12 Energy Bleed 12 | . . . . . . . . 1 . 1 . . . . . . . 10 Interference 12 | . . . . 3 . . . 3 . 3 . . . . . . . 3 Matter Decay 6 | . . . . . . . . 2 . . . . . . . 1 . 3 Short Circuit 4 | . . . . . . . . 1 . . . . . . . . . 3 Damage (minor) 4 | . . . . . . . . . . . . . . . . . . 4 Damage (major) 21 | . . . . . . . . 8 . . . . . . 3 . . 10 Damage (core) 2 | . . . . . . . . . . . . . . . . . . 2 Siege Activations . | . . . . . . . . . . . . . . . . . . . Robots Corrupted 2 | . . . . . . . . 1 . . . . . . . . . 1 Combat Hostiles 1 | . . . . . . . . . . . . . . . . . . 1 Parts Fried 6 | . . . . . . . . 2 . . . . . . . . . 4 Impact Corruptions 1 | . . . . . . . . 1 . . . . . . . . . . Robots Melted 2 | . . . . . . . . . . . . 1 . . . 1 . . Combat Hostiles 2 | . . . . . . . . . . . . 1 . . . 1 . . Parts Melted 25 | . 5 1 1 . . 1 4 3 . . . 1 . . . 3 . 6 Heat Transferred 23592 | 185 1591 740 2603 925 814 1685 3403 4266 200 720 200 1025 659 311 435 609 1048 2173 Parts Sabotaged 3 | . . . . . . . 3 . . . . . . . . . . . Parts Stolen . | . . . . . . . . . . . . . . . . . . . Parts Stripped . | . . . . . . . . . . . . . . . . . . . Power Chain Reactions 3 | . . . . . . . . . . . . . . . . . . 3 Alert | -11 -10 -10 -9 -9 -8 -7 -6 -6 -6 -5 -4 -4 -4 -4 -3 -3 -3 -2 ------- Run | Yrd Mat Min Mat Min Mat Fac Fac Ext Cet Fac Fac Upp Upp War Pro Res Qua Res Peak Influence 1821 | 20 206 140 382 197 179 302 1109 766 594 1821 869 . . . . 135 523 603 Initial 818 | . 13 10 1 7 22 . 140 543 317 220 818 . . . . . 49 288 Average 308 | 8 85 47 238 96 54 109 536 449 419 1050 839 . . . . 38 334 352 Maximum Alert Level 5 | . 1 . 1 . . 1 4 3 2 5 3 . . . . . 2 2 Low Security (%) 44 | 100 98 100 25 100 100 68 32 . . . . . . . . 100 20 . Level 1 26 | . 1 . 74 . . 31 7 32 22 24 . . . . . . 35 73 Level 2 19 | . . . . . . . 19 65 77 15 1 . . . . . 43 26 Level 3 7 | . . . . . . . 38 1 . 10 98 . . . . . . . Level 4 1 | . . . . . . . 1 . . 22 . . . . . . . . Level 5 1 | . . . . . . . . . . 27 . . . . . . . . High Security . | . . . . . . . . . . . . . . . . . . . Max Security . | . . . . . . . . . . . . . . . . . . . Squads Dispatched 54 | . . . 4 . 2 4 14 7 . 7 . . . . . 3 3 10 Investigation 13 | . . . 3 . 1 1 . 3 . 2 . . . . . 2 . 1 Extermination 11 | . . . . . . 1 3 . . 1 . . . . . . 1 5 Reinforcement 20 | . . . 1 . 1 2 4 3 . 2 . . . . . 1 2 4 Assault 7 | . . . . . . . 4 1 . 2 . . . . . . . . Garrison 3 | . . . . . . . 3 . . . . . . . . . . . Intercept . | . . . . . . . . . . . . . . . . . . . Searches Triggered . | . . . . . . . . . . . . . . . . . . . Construction Impeded 5 | . . . . . . . 1 2 . 1 . . . . . . . 1 Haulers Reinforced 5 | . . . . . . . 1 . . 1 . . . . . . . 3 Active Scanning Responses . | . . . . . . . . . . . . . . . . . . . Cargo Convoy Interrupts 2 | . . . . . . 1 1 . . . . . . . . . . . Stealth | -11 -10 -10 -9 -9 -8 -7 -6 -6 -6 -5 -4 -4 -4 -4 -3 -3 -3 -2 --------- Run | Yrd Mat Min Mat Min Mat Fac Fac Ext Cet Fac Fac Upp Upp War Pro Res Qua Res Distress Signals 32 | . 1 . 1 . 1 1 3 2 1 2 . . . 3 . 6 3 8 Communications Jammed . | . . . . . . . . . . . . . . . . . . . Distress Signals . | . . . . . . . . . . . . . . . . . . . Times Spotted 406 | . 20 6 37 23 15 29 64 41 9 30 1 5 2 18 8 12 31 55 Peak Tracking Total 13 | . 7 3 3 4 3 4 6 5 5 6 1 2 1 13 4 4 9 12 Tactical Retreats 13 | . . 1 1 . . 1 4 3 . 1 . . . 1 . . . 1 Traps | -11 -10 -10 -9 -9 -8 -7 -6 -6 -6 -5 -4 -4 -4 -4 -3 -3 -3 -2 ------- Run | Yrd Mat Min Mat Min Mat Fac Fac Ext Cet Fac Fac Upp Upp War Pro Res Qua Res Traps Triggered 26 | . 2 . 3 . . . 3 10 . . 1 . . . . . . 7 Indirectly . | . . . . . . . . . . . . . . . . . . . Trap Hack Attempts . | . . . . . . . . . . . . . . . . . . . Triggered . | . . . . . . . . . . . . . . . . . . . Disarmed . | . . . . . . . . . . . . . . . . . . . Reprogrammed . | . . . . . . . . . . . . . . . . . . . Reused . | . . . . . . . . . . . . . . . . . . . Traps Extracted . | . . . . . . . . . . . . . . . . . . . Installed . | . . . . . . . . . . . . . . . . . . . Triggered 28 | . . . . . . 1 . . . . . 1 . 26 . . . . Machines | -11 -10 -10 -9 -9 -8 -7 -6 -6 -6 -5 -4 -4 -4 -4 -3 -3 -3 -2 ---------- Run | Yrd Mat Min Mat Min Mat Fac Fac Ext Cet Fac Fac Upp Upp War Pro Res Qua Res Machines Disabled 34 | . . . . . 1 2 14 2 . 6 . 1 . . . 3 3 2 Max in Single Turn 6 | . . . . . 1 1 6 1 . 4 . 1 . . . 1 1 1 Garrison Access 2 | . . . . . . . . . . 1 . . . . . 1 . . Machines Repaired . | . . . . . . . . . . . . . . . . . . . Machines Dismantled . | . . . . . . . . . . . . . . . . . . . Machines Sabotaged . | . . . . . . . . . . . . . . . . . . . Overloaded Fab Kills . | . . . . . . . . . . . . . . . . . . . Hacking | -11 -10 -10 -9 -9 -8 -7 -6 -6 -6 -5 -4 -4 -4 -4 -3 -3 -3 -2 --------- Run | Yrd Mat Min Mat Min Mat Fac Fac Ext Cet Fac Fac Upp Upp War Pro Res Qua Res Machines Accessed 52 | . 8 . 6 . 5 1 1 12 1 3 . 2 1 6 . 1 3 2 Terminals 41 | . 7 . 6 . 4 1 1 12 1 2 . 1 . . . 1 3 2 Fabricators 1 | . . . . . . . . . . 1 . . . . . . . . Repair Stations . | . . . . . . . . . . . . . . . . . . . Recycling Units 1 | . 1 . . . . . . . . . . . . . . . . . Scanalyzers 1 | . . . . . 1 . . . . . . . . . . . . . Garrison Access . | . . . . . . . . . . . . . . . . . . . Total Hacks 108 | . 23 . 13 . 15 2 1 22 1 8 . 2 1 11 . 2 3 4 Successful 47 | . 9 . 5 . 4 1 1 8 . 2 . 2 1 11 . . 3 . Failed 61 | . 14 . 8 . 11 1 . 14 1 6 . . . . . 2 . 4 Catastrophic 17 | . 1 . 4 . 5 . . 1 . 4 . . . . . 1 . 1 Database Lockouts . | . . . . . . . . . . . . . . . . . . . Manual 33 | . 7 . 10 . 7 2 1 3 1 2 . . . . . . . . Terminals 88 | . 21 . 13 . 12 2 1 22 1 6 . 1 . . . 2 3 4 Fabricators 2 | . . . . . . . . . . 2 . . . . . . . . Repair Stations . | . . . . . . . . . . . . . . . . . . . Recycling Units 2 | . 2 . . . . . . . . . . . . . . . . . Scanalyzers 3 | . . . . . 3 . . . . . . . . . . . . . Garrison Access . | . . . . . . . . . . . . . . . . . . . Terminal Hacks 43 | . 9 . 5 . 2 1 1 8 . . . 2 1 11 . . 3 . Record 11 | . . . . . . . . . . . . 1 . 9 . . 1 . Part Schematic 5 | . 1 . 1 . 2 1 . . . . . . . . . . . . Robot Analysis 4 | . 3 . 1 . . . . . . . . . . . . . . . Prototype ID Bank 1 | . 1 . . . . . . . . . . . . . . . . . Open Door 12 | . . . . . . . . 8 . . . 1 1 2 . . . . Level Access Points 1 | . . . . . . . . . . . . . . . . . 1 . Branch Access Points 1 | . . . . . . . 1 . . . . . . . . . . . Unreport Threat 2 | . . . 2 . . . . . . . . . . . . . . . Locate Traps 3 | . 2 . 1 . . . . . . . . . . . . . . . Registered Components 1 | . 1 . . . . . . . . . . . . . . . . . Zone Layout 2 | . 1 . . . . . . . . . . . . . . . 1 . Fabricator Hacks 2 | . . . . . . . . . . 2 . . . . . . . . Load Schematic 1 | . . . . . . . . . . 1 . . . . . . . . Build 1 | . . . . . . . . . . 1 . . . . . . . . Repair Station Hacks . | . . . . . . . . . . . . . . . . . . . Recycling Unit Hacks . | . . . . . . . . . . . . . . . . . . . Scanalyzer 2 | . . . . . 2 . . . . . . . . . . . . . Insert Component 1 | . . . . . 1 . . . . . . . . . . . . . Analyze 1 | . . . . . 1 . . . . . . . . . . . . . Garrison Access Hacks . | . . . . . . . . . . . . . . . . . . . Unauthorized Hacks . | . . . . . . . . . . . . . . . . . . . Terminals . | . . . . . . . . . . . . . . . . . . . Fabricators . | . . . . . . . . . . . . . . . . . . . Repair Stations . | . . . . . . . . . . . . . . . . . . . Recycling Units . | . . . . . . . . . . . . . . . . . . . Scanalyzers . | . . . . . . . . . . . . . . . . . . . Garrison Access . | . . . . . . . . . . . . . . . . . . . Data Cores Recovered 1 | . . . . . 1 . . . . . . . . . . . . . Used 1 | . . . . . 1 . . . . . . . . . . . . . Hacking Detections 34 | . 5 . 5 . 5 1 1 9 1 3 . . . . . 1 1 2 Full Trace Events 12 | . 2 . 1 . 3 . . 3 . 2 . . . . . 1 . . Feedback Events . | . . . . . . . . . . . . . . . . . . . Feedback Blocked . | . . . . . . . . . . . . . . . . . . . Robot Schematics Acquired . | . . . . . . . . . . . . . . . . . . . Robots Built . | . . . . . . . . . . . . . . . . . . . Authchips . | . . . . . . . . . . . . . . . . . . . Time . | . . . . . . . . . . . . . . . . . . . Total Robot Build Rating . | . . . . . . . . . . . . . . . . . . . Part Schematics Acquired 6 | . 1 . 1 . 3 1 . . . . . . . . . . . . Parts Built 2 | . . . . . . . . . . 2 . . . . . . . . Authchips . | . . . . . . . . . . . . . . . . . . . Time 73 | . . . . . . . . . . 73 . . . . . . . . Total Part Build Rating 6 | . . . . . . . . . . 6 . . . . . . . . Parts Repaired . | . . . . . . . . . . . . . . . . . . . Time . | . . . . . . . . . . . . . . . . . . . Parts Recycled . | . . . . . . . . . . . . . . . . . . . Recycled Matter . | . . . . . . . . . . . . . . . . . . . Retrieved Matter . | . . . . . . . . . . . . . . . . . . . Retrieved Components . | . . . . . . . . . . . . . . . . . . . Parts Scanalyzed 1 | . . . . . 1 . . . . . . . . . . . . . Part Schematics Acquired 1 | . . . . . 1 . . . . . . . . . . . . . Parts Damaged . | . . . . . . . . . . . . . . . . . . . Bothacking | -11 -10 -10 -9 -9 -8 -7 -6 -6 -6 -5 -4 -4 -4 -4 -3 -3 -3 -2 ------------ Run | Yrd Mat Min Mat Min Mat Fac Fac Ext Cet Fac Fac Upp Upp War Pro Res Qua Res Used RIF Installer . | . . . . . . . . . . . . . . . . . . . Robots Hacked . | . . . . . . . . . . . . . . . . . . . Non-combat . | . . . . . . . . . . . . . . . . . . . Combat . | . . . . . . . . . . . . . . . . . . . Robot Hacks Applied . | . . . . . . . . . . . . . . . . . . . Relay Couplers Released 13 | . . . . . . 3 . . . 1 . . . . . 1 4 4 Machine Destruction 2 | . . . . . . . . . . 1 . . . . . 1 . . Programmers 11 | . . . . . . 3 . . . . . . . . . . 4 4 Fabnet Peak Effective % . | . . . . . . . . . . . . . . . . . . . Robots Rewired . | . . . . . . . . . . . . . . . . . . . Allies Hacked . | . . . . . . . . . . . . . . . . . . . Hacks Repelled . | . . . . . . . . . . . . . . . . . . . Allies | -11 -10 -10 -9 -9 -8 -7 -6 -6 -6 -5 -4 -4 -4 -4 -3 -3 -3 -2 -------- Run | Yrd Mat Min Mat Min Mat Fac Fac Ext Cet Fac Fac Upp Upp War Pro Res Qua Res Total Allies 24 | . . 2 . 3 . . . 11 5 . . . . . . 3 . . Largest Group 8 | . . 2 2 3 3 . . 6 8 8 . . . . . 3 . . Highest-Rated Group 698 | . . 40 40 40 40 . . 324 698 680 . . . . . 138 . . Highest-Rated Ally 159 | . . 31 31 16 16 . . 159 159 153 . . . . . 46 . . Total Orders . | . . . . . . . . . . . . . . . . . . . Ally Attacks 259 | . . . 12 4 19 . . 69 55 100 . . . . . . . . Total Damage 7575 | . . . 149 63 176 . . 1232 1957 3998 . . . . . . . . Kills 49 | . . . 1 1 2 . . 10 10 25 . . . . . . . . Allies Corrupted . | . . . . . . . . . . . . . . . . . . . Allies Melted 1 | . . . . 1 . . . . . . . . . . . . . . Intel | -11 -10 -10 -9 -9 -8 -7 -6 -6 -6 -5 -4 -4 -4 -4 -3 -3 -3 -2 ------- Run | Yrd Mat Min Mat Min Mat Fac Fac Ext Cet Fac Fac Upp Upp War Pro Res Qua Res Robot Analysis Total 4 | . 3 . 1 . . . . . . . . . . . . . . . Derelict Logs Recovered 5 | . . 2 . . . . . . . . . 2 1 . . . . . Drone Launches . | . . . . . . . . . . . . . . . . . . . Drone Recoveries . | . . . . . . . . . . . . . . . . . . . Exploration | -11 -10 -10 -9 -9 -8 -7 -6 -6 -6 -5 -4 -4 -4 -4 -3 -3 -3 -2 ------------- Run | Yrd Mat Min Mat Min Mat Fac Fac Ext Cet Fac Fac Upp Upp War Pro Res Qua Res Turns Passed 24460 | 98 1314 1035 2264 1085 2134 1474 2589 3279 460 800 405 1376 1045 1559 425 722 659 1737 Spaces Moved 10448 | 46 738 548 1092 348 836 491 1037 949 169 367 236 787 628 705 230 392 308 541 Core 23 | 6 . . 5 . . . . 10 . . . . . . . . . 2 Treads 7256 | 37 93 . 180 348 836 491 1037 221 23 367 236 787 628 705 230 392 308 337 Legs 462 | . . . . . . . . 316 146 . . . . . . . . . Wheels 2705 | 3 645 548 907 . . . . 402 . . . . . . . . . 200 Hover 2 | . . . . . . . . . . . . . . . . . . 2 Flight . | . . . . . . . . . . . . . . . . . . . Fastest Speed 50 | 50 115 175 130 240 240 240 162 140 190 160 164 164 160 160 160 160 156 50 Average Speed 190 | 148 156 175 167 240 240 240 188 272 196 163 164 164 160 160 160 160 158 195 Slowest Speed 1750 | 160 480 175 1650 240 240 240 243 1750 240 240 164 165 165 160 160 160 160 550 Overloaded Moves . | . . . . . . . . . . . . . . . . . . . Propulsion Burnouts . | . . . . . . . . . . . . . . . . . . . Robots Hopped . | . . . . . . . . . . . . . . . . . . . Cave-ins Triggered . | . . . . . . . . . . . . . . . . . . . Exploration Rate (%) 50 | 4 97 88 73 61 47 11 29 71 71 16 4 86 78 92 47 16 53 15 Regions Visited 18 Branch Regions 9 Pre-discovered Areas 1 | . . . . . . . . . . . . 1 . . . . . . Known Exits Taken 6 | . . . 1 . . 1 1 . . . . . . . 1 1 1 . Unknown Exits Taken 12 | 1 1 1 . 1 1 . . 1 1 1 1 1 1 1 . . . . Scrap Searched 9 | . . 1 . 1 . . . . . . . 4 3 . . . . . Spaces Dug 149 | . . 5 . 33 1 . 70 1 . 5 . 2 . . 15 5 8 4 Terrain Destroyed 678 | . . 5 . 91 14 7 231 43 1 65 2 20 3 5 30 12 69 80 Melee 10 | . . . . . 1 . 9 . . . . . . . . . . . Projectile 288 | . . . . 1 13 7 85 31 1 24 2 20 3 5 15 12 33 36 AOE 380 | . . 5 . 90 . . 137 12 . 41 . . . . 15 . 36 44 Terrain Rammed . | . . . . . . . . . . . . . . . . . . . Walls Destroyed . | . . . . . . . . . . . . . . . . . . . Machines Disabled . | . . . . . . . . . . . . . . . . . . . Actions | -11 -10 -10 -9 -9 -8 -7 -6 -6 -6 -5 -4 -4 -4 -4 -3 -3 -3 -2 --------- Run | Yrd Mat Min Mat Min Mat Fac Fac Ext Cet Fac Fac Upp Upp War Pro Res Qua Res Total 13432 | 63 825 583 1362 521 928 656 1387 1355 298 509 252 837 645 1124 257 458 398 974 Wait 1358 | . 8 2 99 118 . 53 106 102 91 74 . 8 . 411 5 11 34 236 Move 10430 | 45 737 547 1091 347 835 490 1036 948 168 366 235 786 627 704 229 391 307 541 Hop . | . . . . . . . . . . . . . . . . . . . Pick Up 199 | 6 19 4 24 1 21 9 19 25 11 10 6 9 1 1 2 10 7 14 Fast Attach 88 | 7 1 . 4 1 4 2 5 23 2 3 1 2 3 1 . 2 2 25 Attach 96 | . . 1 10 4 2 6 10 19 . 2 2 1 . . 3 2 6 28 Detach 5 | . . . . . 2 . . 1 1 . . . . . . . . 1 Swap 107 | . 8 2 8 6 8 6 13 19 5 7 1 2 1 . 4 7 2 8 Drop 179 | . 8 3 27 . 26 10 12 16 15 14 5 15 5 2 . 14 1 6 Fire 905 | 5 43 24 96 44 29 80 176 153 5 33 2 14 8 5 14 21 39 114 Melee 27 | . . . . . 1 . 10 16 . . . . . . . . . . Ram 6 | . 1 . 3 . . . . 1 . . . . . . . . . 1 Kick . | . . . . . . . . . . . . . . . . . . . Crush . | . . . . . . . . . . . . . . . . . . . Escape Stasis 32 | . . . . . . . . 32 . . . . . . . . . . Rewire . | . . . . . . . . . . . . . . . . . . . Trap . | . . . . . . . . . . . . . . . . . . . Miscellaneous . | . . . . . . . . . . . . . . . . . . . Route ------- -11/Scrapyard -10/Materials (discovered 4 exits: *Mat x3 / [*Min]) -10/Mines (discovered 3 exits: *Mat / [*Exi] / [*Sub]) -9/Materials (discovered 4 exits: *Mat x2 / *Min x2) -9/Mines -8/Materials (discovered 2 exits: *Fac / [*Sto]) -7/Factory -6/Factory (discovered 5 exits: *Fac / *Low x2 / *Ext x2) -6/Extension (discovered 2 exits: *Fac / *Cet) -6/Cetus (discovered 2 exits: *Fac / [*Arc]) -5/Factory -4/Factory -4/Upper Caves -4/Upper Caves -4/Warlord -3/Proximity Caves -3/Research -3/Quarantine -2/Research History --------- Turn | Location | Event 18 | -11/Scrapyard | Discovered new exit (range 15) 99 | -11/Scrapyard | Entered Materials 306 | -10/Materials | Build established: Mutant 429 | -10/Materials | Discovered new exit (range 15) 704 | -10/Materials | Discovered new exit (range 15) 893 | -10/Materials | Discovered new exit (range 16) 1165 | -10/Materials | Discovered new exit (range 15) 1413 | -10/Materials | Entered Mines 1492 | -10/Mines | Learned Materials interactive machine intel 1527 | -10/Mines | Learned location of 1 exit from Materials 1527 | -10/Mines | Discovered new exit (range 6) 1671 | -10/Mines | Received a Rocket Launcher from a helpful Derelict 1823 | -10/Mines | Deemed a non-threat by the Exiles lab entrance 1825 | -10/Mines | Discovered new exit (range 5) 2142 | -10/Mines | Discovered new exit (range 9) 2448 | -10/Mines | Entered Materials 2448 | -9/Materials | Accompanied by 2 allies 2448 | -9/Materials | Evolved 2 slots: Propulsion x1, Utility x1 2449 | -9/Materials | Identified exit to Mines 2450 | -9/Materials | Loaded intel: 18 interactive machine locations 2453 | -9/Materials | Led the pair of lost Derelicts to an unsafe place 2767 | -9/Materials | Build established: Scavenger-Mutant 3313 | -9/Materials | Build established: Mutant 3665 | -9/Materials | Discovered new exit (range 4) 4064 | -9/Materials | Discovered new exit (range 4) 4600 | -9/Materials | Discovered exit to Mines (range 11) 4712 | -9/Materials | Entered Mines 4743 | -9/Mines | Destroyed 7 combat bots 4766 | -9/Mines | Met a Derelict bent on vengeance 5141 | -9/Mines | Assembled infested the area 5432 | -9/Mines | Lost 3 parts (1n1u1w) 5592 | -9/Mines | Discovered new exit (range 16) 5594 | -9/Mines | Assisted by bots powering up and referring to "LRC-V3" 5714 | -9/Mines | Build established: Scavenger-Mutant 5797 | -9/Mines | Entered Materials 5797 | -8/Materials | Accompanied by 3 allies 5797 | -8/Materials | Evolved 2 slots: Propulsion x1, Utility x1 6066 | -8/Materials | Discovered new exit (range 15) 6205 | -8/Materials | Build established: Mutant 6757 | -8/Materials | Discovered new exit (range 15) 7931 | -8/Materials | Entered Factory 7931 | -7/Factory | Evolved 2 slots: Utility x2 8256 | -7/Factory | Discovered new exit (range 16) 9079 | -7/Factory | Identified exit to Factory 9181 | -7/Factory | Cargo convoy interrupted 9405 | -7/Factory | Entered another Factory area 9405 | -6/Factory | Evolved 2 slots: Propulsion x2 9412 | -6/Factory | Lost 3 parts (1n1u1w) 9480 | -6/Factory | Discovered new exit (range 19) 9502 | -6/Factory | Identified exit to Lower Caves 9502 | -6/Factory | Identified exit to Extension 10402 | -6/Factory | Garrison activated, responded to threat 10455 | -6/Factory | First assault squad dispatched 10574 | -6/Factory | Cargo convoy interrupted 10860 | -6/Factory | Discovered new exit (range 19) 11976 | -6/Factory | Lost 3 parts (1n1u1w) 11994 | -6/Factory | Entered Extension 12169 | -6/Extension | Disrupted transfer network 12332 | -6/Extension | Lost 5 parts (1p2n2u) 12383 | -6/Extension | Lost 3 parts (1p1u1w) 12396 | -6/Extension | Rescued a captive Derelict 12397 | -6/Extension | Rescued a captive Derelict 12599 | -6/Extension | Rescued a captive Derelict 12656 | -6/Extension | Rescued a captive Derelict 12678 | -6/Extension | Build established: Scavenger-Mutant 12828 | -6/Extension | Spotted B-75 Beast 12895 | -6/Extension | Core integrity fell below 50% 12935 | -6/Extension | Destroyed B-75 Beast 12963 | -6/Extension | Lost 8 parts (1p5n1u1w) 13365 | -6/Extension | Spotted B-75 Beast 13483 | -6/Extension | Lost 4 parts (1n1u2w) 13483 | -6/Extension | Destroyed B-75 Beast 13688 | -6/Extension | Build established: Mutant 14218 | -6/Extension | Rescued a captive Derelict 14325 | -6/Extension | Rescued a captive Derelict 14589 | -6/Extension | Core integrity fell below 20% 14681 | -6/Extension | Lost 3 parts (1p1n1u) 14690 | -6/Extension | Build established: Scavenger-Mutant 14938 | -6/Extension | Rescued a captive Derelict 14940 | -6/Extension | Rescued a captive Derelict 14982 | -6/Extension | Rescued a captive Derelict 14984 | -6/Extension | Rescued a captive Derelict 15140 | -6/Extension | Rescued A7 15144 | -6/Extension | First assault squad dispatched 15235 | -6/Extension | Discovered new exit (range 10) 15237 | -6/Extension | Discovered new exit (range 6) 15273 | -6/Extension | Entered Cetus 15273 | -6/Cetus | Accompanied by 5 allies (A7) 15278 | -6/Cetus | Acquired a Cetus Manufacturing Module code from A7 15294 | -6/Cetus | Spotted Cetus Guard 15297 | -6/Cetus | Spotted Cetus Guard 15298 | -6/Cetus | Spotted Cetus Guard 15304 | -6/Cetus | Allies destroyed Cetus Guard 15308 | -6/Cetus | Allies destroyed Cetus Guard 15309 | -6/Cetus | Allies destroyed Cetus Guard 15312 | -6/Cetus | Spotted Cetus Guard 15325 | -6/Cetus | Allies destroyed Cetus Guard 15368 | -6/Cetus | System corruption reached 10% 15422 | -6/Cetus | Started Cetus Manufacturing Module 15447 | -6/Cetus | Manufactured an Enhanced Grunt 15472 | -6/Cetus | Manufactured an Enhanced Grunt 15497 | -6/Cetus | Manufactured an Enhanced Grunt 15522 | -6/Cetus | Manufactured an Enhanced Grunt 15547 | -6/Cetus | Manufactured an Enhanced Grunt 15568 | -6/Cetus | Discovered new exit (range 20) 15616 | -6/Cetus | Spotted Cetus Guard 15616 | -6/Cetus | Spotted Cetus Guard 15616 | -6/Cetus | Spotted Cetus Guard 15616 | -6/Cetus | Spotted Cetus Guard 15621 | -6/Cetus | Allies destroyed Cetus Guard 15625 | -6/Cetus | Allies destroyed Cetus Guard 15634 | -6/Cetus | Allies destroyed Cetus Guard 15637 | -6/Cetus | Allies destroyed Cetus Guard 15642 | -6/Cetus | Discovered new exit (range 19) 15661 | -6/Cetus | Met Revision 17 15733 | -6/Cetus | Entered Factory 15733 | -5/Factory | Accompanied by 8 allies (A7) 15733 | -5/Factory | Evolved 2 slots: Utility x1, Weapon x1 15937 | -5/Factory | Fabricated Arm. Treads (x2) 16040 | -5/Factory | Build established: Scavenger-Tank 16214 | -5/Factory | Destroyed 7 combat bots 16283 | -5/Factory | Spotted B-75 Beast 16333 | -5/Factory | First assault squad dispatched 16502 | -5/Factory | Discovered new exit (range 20) 16533 | -5/Factory | Entered another Factory area 16533 | -4/Factory | Evolved 2 slots: Utility x1, Weapon x1 16632 | -4/Factory | Discovered new exit (range 4) 16834 | -4/Factory | Build established: Scavenger-Gunner 16938 | -4/Factory | Entered Upper Caves 17127 | -4/Upper Caves | Found DCF Scrap (13 items) 17185 | -4/Upper Caves | Learned 4 Research zone layouts 17748 | -4/Upper Caves | Attacked by a delusional Derelict stockpiling parts 17867 | -4/Upper Caves | Learned location of Armory (-4) 18077 | -4/Upper Caves | Discovered new exit (range 22) 18314 | -4/Upper Caves | Entered another Upper Caves area 18858 | -4/Upper Caves | Encountered a Warlord checkpoint 18923 | -4/Upper Caves | Learned Research terminal intel 19158 | -4/Upper Caves | Discovered new exit (range 9) 19224 | -4/Upper Caves | Spotted B-86 Titan 19250 | -4/Upper Caves | Destroyed B-86 Titan 19359 | -4/Upper Caves | Entered Warlord 19449 | -4/Warlord | Discovered new exit (range 13) 19657 | -4/Warlord | Learned Quarantine trap positions 19657 | -4/Warlord | Learned Research stockpile data 19658 | -4/Warlord | Learned 4 Armory zone layouts 19658 | -4/Warlord | Learned 4 Testing zone layouts 19660 | -4/Warlord | Learned Research repair station intel 19809 | -4/Warlord | Met Warlord 19834 | -4/Warlord | Warlord's base attacked by MAIN.C 20112 | -4/Warlord | Found Prototype Energy Cannon 20112 | -4/Warlord | Identified Vortex Cannon 20184 | -4/Warlord | Warlord forces counterattacked 20341 | -4/Warlord | Opened side exit 20399 | -4/Warlord | Spotted Executioner 20442 | -4/Warlord | Destroyed Executioner 20464 | -4/Warlord | Lost 3 allies 20509 | -4/Warlord | Warlord base infiltrated, sounded retreat 20902 | -4/Warlord | Spotted Striker 20903 | -4/Warlord | Spotted Striker 20918 | -4/Warlord | Entered Proximity Caves 20919 | -3/Proximity Caves | Identified exit to Research 21343 | -3/Proximity Caves | Entered Research 21343 | -3/Research | Evolved 2 slots: Utility x2 21344 | -3/Research | Identified exit to Quarantine 21347 | -3/Research | Loaded intel: 25 terminal locations 21348 | -3/Research | Loaded intel: 4 repair station locations 21365 | -3/Research | Build established: Scavenger-Tank 21543 | -3/Research | Revision forces began assault on 0b10 21592 | -3/Research | Met up with Revision 17++ 22043 | -3/Research | Research terminal network offline 22065 | -3/Research | Entered Quarantine 22066 | -3/Quarantine | Loaded intel: 36 trap records 22130 | -3/Quarantine | Found Alien Artifact 22130 | -3/Quarantine | Identified Terrabomb 22130 | -3/Quarantine | Used Terrabomb 22228 | -3/Quarantine | Found Alien Artifact 22228 | -3/Quarantine | Identified Subatomic Replicator 22582 | -3/Quarantine | Destroyed 9 combat bots 22639 | -3/Quarantine | Identified exit to Research 22724 | -3/Quarantine | Entered Research 22724 | -2/Research | Evolved 2 slots: Power x1, Utility x1 23202 | -2/Research | System corruption reached 10% 23277 | -2/Research | Lost 5 parts (1n3u1w) 23560 | -2/Research | Build established: Scavenger-Gunner 23694 | -2/Research | Lost 9 parts (1p2n3u3w) 23875 | -2/Research | Lost 6 parts (1p2u3w) 24119 | -2/Research | Lost 7 parts (1p3n3w) 24197 | -2/Research | Lost 3 parts (1u2w) 24396 | -2/Research | Core integrity fell below 50% 24449 | -2/Research | Core integrity fell below 20% 24461 | -2/Research | Destroyed by H-88 Terminator with KE Penetrator Last Messages --------------- U-05 Engineer lays Concrete. P-80 Master destroyed. W-44 Eye sends out distress signal. U-05 Engineer lays Concrete. Hardcell Cannon destroyed. Huge Storage Unit destroyed. U-05 Engineer lays Concrete. Penetrated by Slug. U-05 Engineer lays Concrete. Penetrated by Slug. Hvy. Missile Launcher destroyed. Lgt. Quantum Reactor destroyed. U-05 Engineer lays Concrete. Power failure, Rnf. Fission Core shutdown. U-05 Engineer lays Concrete. Rnf. Fission Core destroyed. U-05 Engineer lays Concrete. Acquired 29 matter. System corrupted: Energy discharge (-23). Penetrated by Slug. Map ----- +----------------------------------------------------+ | # %%# """""" # # ]! #????????? | | # # ! # #! #????????? | | # # # # #????????? | | # #####+###########+######+##+####????????? | | + ^ % #???????????? | | # ^ % #???????????? | | ?# ^ #???????????? | | ?# #???????????? | | ??######## #################+#####??????????? | | ##?????????# #? *????# #??????????? | | ???????????# #? ! ????# #??????????? | | ???????????# % +?? ! ????# """ #??????????? | | ???????????# # ????# """ #??????????? | | ???????????# # ? ????# """ #??????????? | | ???????????# [ # R ????# """ ##?????????? | | ???????????#[% # """R ????# """ "#?????????? | | ???????????#%= # """ ???## "#?????????? | | ???????????# % # """ ##?#" #??????????? | | ???????????#w% # #####+######"#?????????? | | ???????????# % # #??##?????????? | | ???????????# #?????????????? | | ???????????# u #####?????????? | | ???????????# u "" # #?????????? | | ???????????# [ "S # #?????????? | | ???????????# % []!" R !!##"###????????? | | ???????????# # @=!]% [%!%+ + | | ????????????????# =]/! =[= #####?????????? | | ???????????# ### ;;%[;#########???????????? | | ???????# *!= % +????????? | | ???????# |%[ #????????? | | ???????# h %gg ![! +????????? | | ???? + h/h= wp #????????? | | ???? ; A /== w h###+################ #????????? | | ???????# /= % # ???????????????????????????? | | ???????# ! ?# ????????????????????????????? | | ?????? ??#?????????????????????????????? | | ?????? ?????????????????????????????????? | | ?????? ??????????????????????????????????? | | ??????? w ???????????????????????????????????? | | ???????##/###????????????????????????????????????? | | ???????? ????????????????????????????????????????? | | ?????????????????????????????????????????????????? | | ?????????????????????????????????????????????????? | | ?????????????????????????????????????????????????? | | ?????????????????????????????????????????????????? | | ?????????????????????????????????????????????????? | | ?????????????????????????????????????????????????? | | ?????????????????????????????????????????????????? | | ?????????????????????????????????????????????????? | | ?????????????????????????????????????????????????? | +----------------------------------------------------+ Best States ------------- Heat Dissipation 106 Energy Generation 45 Energy Capacity 590 Matter Stores 300 Matter Capacity 300 Sight Range 22 Robot Scan Range 15 Terrain Scan Range 16 Terrain Scan Density 10 Jamming Range 12 Armor Coverage 1275 Resistance: KI 30 Resistance: TH 30 Resistance: EX 50 Evasion (%) 40 Targeting Accuracy 14 Target Analysis 12 Core Analysis 6 Recoil Reduction 6 Item Schematics ----------------- Huge Storage Unit | -10/Materials | Hacked Plasma Cutter | -9/Materials | Hacked Arm. Treads | -8/Materials | Hacked Hpw. Tractor Beam | -8/Materials | Hacked Rocket Launcher | -8/Materials | Scanalyzed Powered Armor | -7/Factory | Hacked Robot Schematics ------------------ None Fabricated ------------ Arm. Treads | x2 | -5/Factory Alien Tech Used ----------------- Terrabomb Subatomic Replicator Achievements -------------- None Challenges ------------ None Game ------ Seed MachineMiningInsulator Manual? 0 Play Time 02:42:34 Cumulative 76.1 hours Start 2024.10.18 @ 01:51:36 End 2024.10.21 @ 23:11:35 Sessions 3 Manual Loads 0 Difficulty Rogue Special Mode None Game No. 56 Rogue 56 Adventurer 0 Explorer 0 Win Type - Total 3 Types 3/0/0/0/0/0/0/0/0 Lore% 28 Gallery% 39 Achievement% 37 Wizard Run 0 Options --------- Layout 0 ASCII 0 Keyboard 0 Movement Mouse Keybinds 0 Fullscreen 1 Font 18/SmallcapsGlow Map View 76x50 Zoom Use 0% Tactical HUD 0 Map Filters NONE Filters NONE Steam 1 RUN: e77af274-00d9-4e64-a1d0-be13f24b621a